bitfinex/quotes_BTCUSD_20250421
["timestamp","ask_amount","ask_price","bid_price","bid_amount"]
[1745234804940,0.11452,86593.0,86592.0,0.23096821]
[1745234805140,0.00013632,86593.0,86592.0,0.23096821]
[1745234805366,0.00013632,86593.0,86592.0,0.58399709]
[1745234805567,0.00013632,86593.0,86592.0,0.58168766]
[1745234806549,0.00213632,86593.0,86592.0,0.58168766]
[1745234806957,0.11958423,86593.0,86592.0,0.01071945]
[1745234807146,0.11958423,86593.0,86591.0,0.23097043]
[1745234807303,0.11944791,86592.0,86591.0,0.23097043]
[1745234807705,0.11744791,86592.0,86591.0,0.23097043]
[1745234808320,0.11744791,86592.0,86591.0,0.23197043]
[1745234808524,0.11744791,86592.0,86591.0,0.23097043]
[1745234808924,0.11744791,86592.0,86591.0,0.23197043]
[1745234809524,0.11744791,86592.0,86591.0,0.001]
[1745234810190,0.00013632,86593.0,86591.0,0.23428009]
[1745234810411,0.00013632,86593.0,86592.0,0.0023094]
[1745234811141,0.00013632,86593.0,86592.0,0.34]
[1745234811604,0.00113632,86593.0,86592.0,0.34]
[1745234811818,0.00013632,86593.0,86592.0,0.34]
[1745234812171,0.00117632,86593.0,86592.0,0.34]
[1745234812591,0.00317632,86593.0,86592.0,0.34]
[1745234812988,0.24717632,86600.0,86597.0,0.01154774]
[1745234813148,0.24724451,86600.0,86598.0,0.23095221]
[1745234814261,0.24824451,86600.0,86598.0,0.23095221]
[1745234814464,0.24824451,86600.0,86599.0,0.01065343]
[1745234815579,0.24724451,86600.0,86599.0,0.01065343]
[1745234816651,0.24724451,86600.0,86599.0,0.341]
[1745234818212,0.24724451,86600.0,86599.0,0.35164705]
[1745234818868,0.000844,86614.0,86611.0,0.57091755]
[1745234819077,0.000844,86614.0,86611.0,0.58246342]
[1745234819292,0.000844,86614.0,86613.0,0.57091221]
[1745234820166,0.000844,86614.0,86613.0,0.58155264]
[1745234821932,0.000884,86614.0,86613.0,0.58155264]
[1745234822151,0.001884,86614.0,86613.0,0.58155264]
[1745234824369,0.12133191,86614.0,86613.0,0.58155264]
[1745234824593,0.12133191,86614.0,86613.0,0.23091221]
[1745234825238,0.12133191,86614.0,86612.0,0.23091304]
[1745234825510,0.11944791,86613.0,86612.0,0.23091304]
[1745234825947,0.01154574,86612.0,86608.0,0.24247009]
[1745234826164,0.0467,86610.0,86608.0,0.24247009]
[1745234826386,0.0467,86610.0,86601.0,0.23094222]
[1745234826387,0.11944791,86609.0,86601.0,0.23094222]
[1745234826611,0.01154761,86598.0,86594.0,0.01154814]
[1745234826854,0.01154681,86604.0,86599.0,0.01154747]
[1745234827072,0.13099485,86603.0,86599.0,0.01154747]
[1745234827289,0.01154721,86601.0,86598.0,0.01154761]
[1745234827515,0.13099525,86600.0,86596.0,0.01154787]
[1745234827752,0.11944791,86600.0,86597.0,0.01154774]
[1745234828258,0.3923996,86599.0,86598.0,0.23095221]
[1745234828454,0.51184751,86599.0,86598.0,0.23095221]
[1745234829315,0.01154761,86598.0,86595.0,0.01154801]
[1745234829607,0.11944791,86597.0,86595.0,0.01154801]
[1745234829846,0.11944791,86597.0,86595.0,0.24250633]
[1745234831284,0.11944791,86597.0,86583.0,0.34]
[1745234831285,0.01154947,86584.0,86581.0,0.01154987]
[1745234831517,0.11944791,86583.0,86582.0,0.24254463]
[1745234831749,0.16614791,86583.0,86582.0,0.01154974]
[1745234831986,0.16614791,86583.0,86581.0,0.01154987]
[1745234832228,0.23100023,86580.0,86579.0,6.819e-05]
[1745234832476,0.78844774,86580.0,86579.0,6.819e-05]
[1745234833730,0.78744774,86580.0,86579.0,6.819e-05]
[1745234834192,0.78944774,86580.0,86579.0,6.819e-05]
[1745234834417,0.79244774,86580.0,86579.0,6.819e-05]
[1745234835568,0.85368859,86580.0,86579.0,6.819e-05]
[1745234836551,0.85168859,86580.0,86579.0,6.819e-05]
[1745234836784,0.85468859,86580.0,86579.0,6.819e-05]
[1745234837257,0.85168859,86580.0,86579.0,6.819e-05]
[1745234837498,0.85468859,86580.0,86579.0,6.819e-05]
[1745234838803,0.96612859,86580.0,86579.0,6.819e-05]
[1745234840589,0.95158774,86580.0,86579.0,6.819e-05]
[1745234844098,1.43969642,86580.0,86579.0,6.819e-05]
[1745234844758,1.09825619,86580.0,86579.0,6.819e-05]
[1745234845003,1.11739619,86580.0,86579.0,6.819e-05]
[1745234845930,1.11439619,86580.0,86579.0,6.819e-05]
[1745234846136,1.11439619,86580.0,86579.0,0.34006819]
[1745234846350,1.11239619,86580.0,86579.0,0.34006819]
[1745234846546,1.11339619,86580.0,86579.0,0.34006819]
[1745234846996,0.88350828,86580.0,86579.0,0.34006819]
[1745234847203,0.88150828,86580.0,86579.0,0.34006819]
[1745234847417,0.88250828,86580.0,86579.0,0.34006819]
[1745234848109,0.3943996,86580.0,86579.0,0.34006819]
[1745234848320,0.3943996,86580.0,86579.0,0.34106819]
[1745234848867,0.3943996,86580.0,86579.0,0.35171113]
[1745234849780,0.3933996,86580.0,86579.0,0.35171113]
[1745234849978,0.3923996,86580.0,86579.0,0.35271113]
[1745234850210,0.3923996,86580.0,86579.0,0.35371113]
[1745234850421,0.11148,86597.0,86596.0,0.57095755]
[1745234850757,4e-05,86597.0,86596.0,0.58160049]
[1745234851222,4e-05,86597.0,86596.0,0.58260049]
[1745234851425,4e-05,86597.0,86596.0,0.62760049]
[1745234851676,0.00104,86597.0,86596.0,0.62760049]
[1745234851819,0.00204,86597.0,86596.0,0.62760049]
[1745234853170,1e-08,86597.0,86596.0,0.62760049]
[1745234853384,4e-05,86601.0,86600.0,0.58548773]
[1745234853589,4e-05,86601.0,86600.0,0.70493564]
[1745234853813,4e-05,86601.0,86600.0,0.71557858]
[1745234854420,4e-05,86601.0,86600.0,0.75347858]
[1745234854638,4e-05,86601.0,86600.0,0.74283564]
[1745234854972,4e-05,86601.0,86600.0,0.75647822]
[1745234855174,4e-05,86601.0,86600.0,0.74883564]
[1745234856398,4e-05,86601.0,86600.0,0.79503564]
[1745234856565,4e-05,86601.0,86600.0,0.80965838]
[1745234856764,4e-05,86601.0,86600.0,0.79503564]
[1745234857022,0.004844,86649.0,86648.0,0.34]
[1745234857730,0.004844,86649.0,86647.0,0.2308216]
[1745234857955,0.11944791,86648.0,86647.0,0.2308216]
[1745234858176,0.0457,86647.0,86646.0,0.01154121]
[1745234858411,0.16514791,86647.0,86646.0,0.01154121]
[1745234858628,0.27526791,86647.0,86646.0,0.01154121]
[1745234859927,0.27726791,86647.0,86646.0,0.01154121]
[1745234860127,0.16714791,86647.0,86646.0,0.01154121]
[1745234860337,0.27726791,86647.0,86646.0,0.01154121]
[1745234860546,0.28126791,86647.0,86646.0,0.01154121]
[1745234860984,0.17114791,86647.0,86646.0,0.01154121]
[1745234861196,0.17114791,86647.0,86646.0,0.35154121]
[1745234861197,0.11612,86647.0,86646.0,0.35154121]
[1745234861474,0.006,86647.0,86646.0,0.35154121]
[1745234861644,0.11612,86647.0,86646.0,0.35154121]
[1745234861982,0.006,86647.0,86646.0,0.35154121]
[1745234862162,0.12344791,86647.0,86646.0,0.35154121]
[1745234862608,0.22952791,86647.0,86646.0,0.35154121]
[1745234863032,0.23452791,86647.0,86646.0,0.35154121]
[1745234863234,0.23452791,86647.0,86641.0,0.01154187]
[1745234863235,0.15,86644.0,86641.0,0.01154187]
[1745234863439,0.15,86644.0,86643.0,0.23083226]
[1745234863620,0.26944791,86644.0,86643.0,0.23083226]
[1745234864072,0.22952791,86644.0,86643.0,0.23083226]
[1745234864281,0.22952791,86644.0,86643.0,0.57083226]
[1745234864408,0.11408,86644.0,86643.0,0.57083226]
[1745234864843,0.11408,86644.0,86643.0,0.34]
[1745234865076,0.11408,86644.0,86643.0,0.57083226]
[1745234865492,0.11508,86644.0,86643.0,0.57083226]
[1745234865819,0.11108,86644.0,86643.0,0.57083226]
[1745234866060,0.11208,86644.0,86643.0,0.57083226]
[1745234866265,0.11608,86644.0,86643.0,0.57083226]
[1745234866469,0.006,86644.0,86643.0,0.57083226]
[1745234866689,0.002,86644.0,86643.0,0.57083226]
[1745234866904,0.005,86644.0,86643.0,0.57083226]
[1745234867245,0.0008444,86654.0,86653.0,0.57080562]
[1745234867445,0.00098065,86654.0,86653.0,0.57080562]
[1745234868689,0.00198065,86654.0,86653.0,0.57080562]
[1745234869243,0.00498065,86654.0,86653.0,0.57080562]
[1745234869650,0.0008856,86655.0,86654.0,0.34]
[1745234870076,0.41123814,86689.0,86661.0,0.34]
[1745234870077,0.11008,86673.0,86661.0,0.34]
[1745234870298,0.11008,86673.0,86665.0,0.23077366]
[1745234870500,0.4162,86681.0,86678.0,0.23073905]
[1745234870763,0.23356791,86679.0,86678.0,0.23073905]
[1745234870987,0.23441211,86679.0,86678.0,0.23073905]
[1745234871398,0.1149642,86679.0,86678.0,0.23073905]
[1745234872228,0.00500478,86679.0,86678.0,0.23073905]
[1745234874128,0.00500478,86679.0,86678.0,0.5730463]
[1745234874332,0.00500478,86679.0,86678.0,0.57073905]
[1745234875537,0.00500478,86679.0,86678.0,0.57173905]
[1745234876102,0.0008438,86688.0,86681.0,0.57073107]
[1745234877444,1e-08,86682.0,86681.0,0.57173107]
[1745234877873,0.004,86709.0,86706.0,0.23066454]
[1745234878077,0.04952056,86707.0,86706.0,0.23066454]
[1745234878486,0.15,86706.0,86701.0,0.35153389]
[1745234878694,0.11944791,86705.0,86704.0,0.23066753]
[1745234879932,0.12144791,86705.0,86704.0,0.23066753]
[1745234880141,0.002,86705.0,86704.0,0.23066753]
[1745234880372,0.12144791,86705.0,86704.0,0.23066753]
[1745234881142,0.12044791,86705.0,86704.0,0.23066753]
[1745234881913,0.11944791,86705.0,86704.0,0.23066753]
[1745234882509,0.12244791,86705.0,86704.0,0.23066753]
[1745234885898,0.12244791,86705.0,86703.0,0.01153362]
[1745234886122,0.046,86700.0,86666.0,0.09185741]
[1745234886327,0.11944791,86699.0,86697.0,0.23068654]
[1745234886553,0.13098206,86699.0,86695.0,0.01153469]
[1745234886763,0.11944791,86699.0,86698.0,0.23068582]
[1745234887644,0.12044791,86699.0,86698.0,0.23068582]
[1745234888051,0.11944791,86699.0,86696.0,0.24222389]
[1745234888442,0.0473,86698.0,86696.0,0.24222389]
[1745234888739,0.11944791,86697.0,86690.0,0.24224246]
[1745234888955,0.11944791,86697.0,86694.0,0.01153482]
[1745234889162,0.11944791,86697.0,86696.0,0.23069115]
[1745234890314,0.12044791,86697.0,86696.0,0.23069115]
[1745234891093,0.11944791,86697.0,86696.0,0.23069115]
[1745234891815,0.12044791,86697.0,86696.0,0.23069115]
[1745234892011,0.12044791,86697.0,86694.0,0.21841396]
[1745234892422,0.12144791,86697.0,86694.0,0.21841396]
[1745234892735,0.12144791,86697.0,86696.0,0.23069115]
[1745234893152,0.53664791,86697.0,86694.0,0.21841396]
[1745234893359,0.15,86690.0,86686.0,0.01153588]
[1745234893553,0.11944791,86689.0,86688.0,0.23071033]
[1745234895423,0.01153575,86687.0,86678.0,0.01153695]
[1745234895636,0.046,86678.0,86675.0,0.24228439]
[1745234895849,0.046,86678.0,86677.0,0.23074171]
[1745234896053,0.16544791,86678.0,86677.0,0.23074171]
[1745234896696,0.16444791,86678.0,86677.0,0.23074171]
[1745234896854,0.16544791,86678.0,86677.0,0.23074171]
[1745234898225,0.16444791,86678.0,86677.0,0.23074171]
[1745234898606,0.16544791,86678.0,86677.0,0.23074171]
[1745234900076,0.16544791,86678.0,86677.0,0.23174171]
[1745234902467,0.27568791,86678.0,86677.0,0.23174171]
[1745234902990,0.16544791,86678.0,86677.0,0.23174171]
[1745234903238,0.27568791,86678.0,86677.0,0.23174171]
[1745234904475,0.23068791,86678.0,86677.0,0.23174171]
[1745234905176,0.22968791,86678.0,86677.0,0.23174171]
[1745234905539,0.11024,86678.0,86677.0,0.23174171]
[1745234906932,4.11024,86678.0,86677.0,0.23174171]
[1745234907687,4.11024,86678.0,86677.0,0.57274171]
[1745234908358,4.11024,86678.0,86677.0,0.58319928]
[1745234909224,4.11024,86678.0,86677.0,0.57274171]
[1745234914290,4.0,86678.0,86677.0,0.57274171]
[1745234917106,4.0,86678.0,86677.0,0.58321672]
[1745234917647,4.0,86678.0,86677.0,0.58421672]
[1745234917799,4.0,86678.0,86677.0,0.58621672]
[1745234918007,4.00004,86678.0,86677.0,0.58721672]
[1745234918227,4.00004,86678.0,86677.0,0.58521672]
[1745234918442,4.00004,86678.0,86677.0,0.57674171]
[1745234919646,3.98750324,86678.0,86677.0,0.58721743]
[1745234920895,3.98750324,86678.0,86677.0,0.57674171]
[1745234921733,4.03500324,86678.0,86677.0,0.57674171]
[1745234923802,4.03500324,86678.0,86677.0,0.57474171]
[1745234924023,4.03500324,86678.0,86677.0,0.57274171]
[1745234924224,3.98750324,86678.0,86677.0,0.57274171]
[1745234928856,4.10695115,86678.0,86677.0,0.57274171]
[1745234930349,4.10795115,86678.0,86677.0,0.57274171]
[1745234931147,4.10895115,86678.0,86677.0,0.57274171]
[1745234932664,4.10795115,86678.0,86677.0,0.57274171]
[1745234933625,4.10895115,86678.0,86677.0,0.57274171]
[1745234934044,4.10995115,86678.0,86677.0,0.57274171]
[1745234936014,4.10995115,86678.0,86677.0,0.24214196]
[1745234938468,4.10995115,86678.0,86677.0,0.23274171]
[1745234941272,4.10995115,86678.0,86677.0,0.23374171]
[1745234941636,3.99050324,86678.0,86677.0,0.23374171]
[1745234943343,3.99050324,86678.0,86677.0,0.24314018]
[1745234944248,3.99050324,86678.0,86677.0,0.23374171]
[1745234948337,3.98950324,86678.0,86677.0,0.23374171]
[1745234948533,3.99050324,86678.0,86677.0,0.23374171]
[1745234949458,3.98850324,86678.0,86677.0,0.23374171]
[1745234949704,3.98950324,86678.0,86677.0,0.23374171]
[1745234949895,3.98850324,86678.0,86677.0,0.23374171]
[1745234950264,3.98950324,86678.0,86677.0,0.23374171]
[1745234951310,3.99050324,86678.0,86677.0,0.23374171]
[1745234954725,3.98950324,86678.0,86677.0,0.23374171]
[1745234955061,3.99050324,86678.0,86677.0,0.23374171]
[1745234955467,3.98750324,86678.0,86677.0,0.23374171]
[1745234955868,3.98850324,86678.0,86677.0,0.23374171]
[1745234960471,3.98850324,86678.0,86677.0,0.57374171]
[1745234961464,3.98750324,86678.0,86677.0,0.57374171]
[1745234963795,4.03710324,86678.0,86677.0,0.57374171]
[1745234963994,5.0017902,86678.0,86677.0,0.003]
[1745234964220,5.01464574,86678.0,86677.0,0.003]
[1745234964425,5.0017902,86678.0,86677.0,0.003]
[1745234964641,4.77105115,86678.0,86677.0,0.003]
[1745234965053,5.0017902,86678.0,86677.0,0.01195005]
[1745234965257,5.0037902,86678.0,86677.0,0.01195005]
[1745234965927,5.0057902,86678.0,86677.0,0.003]
[1745234970404,0.0496,86664.0,86660.0,0.07544929]
[1745234970614,0.11944791,86663.0,86660.0,0.07544929]
[1745234970784,0.11944791,86663.0,86660.0,0.07556987]
[1745234970989,0.11944791,86663.0,86661.0,0.0089425]
[1745234971193,0.12144791,86663.0,86661.0,0.0089425]
[1745234971432,0.12144791,86663.0,86662.0,0.0089425]
[1745234973753,0.12244791,86663.0,86662.0,0.0089425]
[1745234974273,0.12248791,86663.0,86662.0,0.0089425]
[1745234978178,0.00304,86663.0,86662.0,0.3489425]
[1745234984066,0.00204,86663.0,86662.0,0.3489425]
[1745234985647,0.00204,86663.0,86662.0,0.3499425]
[1745234986597,3.98754324,86678.0,86676.0,0.23074438]
[1745234986802,3.98754324,86678.0,86676.0,0.23968688]
[1745234988090,0.00115775,86677.0,86676.0,0.00506388]
[1745234988305,0.00115775,86677.0,86676.0,0.23580826]
[1745234989360,0.00215775,86677.0,86676.0,0.23580826]
[1745234992510,0.00219775,86677.0,86676.0,0.23580826]
[1745234992717,0.00219775,86677.0,86676.0,0.57580826]
[1745234993604,2.34154858,86678.0,86677.0,0.34]
[1745234995889,2.34154858,86678.0,86676.0,0.23074438]
[1745234996999,1.22954363,86678.0,86677.0,0.12175499]
[1745234997213,1.22954363,86678.0,86677.0,0.16504791]
[1745234997793,0.0008436,86698.0,86695.0,0.01153469]
[1745234997996,0.0008436,86698.0,86695.0,0.35384138]
[1745234998201,0.0008436,86698.0,86696.0,0.23069115]
[1745234999066,0.0008436,86698.0,86697.0,0.34]
[1745234999978,0.0496436,86698.0,86697.0,0.34882624]
[1745235000183,0.0516436,86698.0,86697.0,0.00882624]
[1745235000398,0.0506436,86698.0,86697.0,0.00882624]
[1745235000750,0.0516436,86698.0,86697.0,0.00882624]
[1745235000960,0.0028436,86698.0,86697.0,0.34882624]
[1745235006586,0.0018436,86698.0,86697.0,0.34882624]
[1745235006964,0.0008436,86698.0,86697.0,0.34882624]
[1745235008760,0.0008836,86698.0,86697.0,0.34882624]
[1745235018994,0.0008836,86698.0,86697.0,0.34982624]
[1745235019391,0.0008836,86698.0,86697.0,0.35082624]
[1745235021651,0.0966836,86698.0,86697.0,0.342]
[1745235022277,0.0966836,86698.0,86697.0,0.341]
[1745235024810,0.0008836,86698.0,86697.0,0.341]
[1745235025885,0.0008836,86698.0,86697.0,0.34]
[1745235031109,0.0008836,86698.0,86697.0,0.341]
[1745235031493,0.0008836,86698.0,86697.0,0.342]
[1745235031710,0.0008836,86698.0,86697.0,0.341]
[1745235031906,0.0008836,86698.0,86697.0,0.342]
[1745235038354,1e-08,86700.0,86699.0,0.34]
[1745235038537,1e-08,86700.0,86699.0,0.11944791]
[1745235039372,0.0961,86724.0,86711.0,0.23065124]
[1745235039373,0.0475,86724.0,86711.0,0.23065124]
[1745235039581,0.4628436,86712.0,86711.0,0.23065124]
[1745235039782,0.61697975,86712.0,86711.0,0.23065124]
[1745235040440,0.61697975,86712.0,86711.0,0.57065124]
[1745235041319,0.61697975,86712.0,86711.0,0.57165124]
[1745235041830,0.61697975,86712.0,86711.0,0.57265124]
[1745235042225,0.61697975,86712.0,86711.0,0.70664]
[1745235043974,1e-08,86714.0,86713.0,0.57064592]
[1745235044177,1e-08,86714.0,86713.0,0.70463468]
[1745235044723,1e-08,86714.0,86713.0,0.74243468]
[1745235045473,1e-08,86714.0,86713.0,0.74343468]
[1745235045655,1e-08,86714.0,86713.0,0.72800137]
[1745235046514,1e-08,86714.0,86713.0,0.83196137]
[1745235046936,4.001e-05,86714.0,86713.0,0.83396137]
[1745235047137,4.001e-05,86714.0,86713.0,0.83496137]
[1745235047278,4.001e-05,86714.0,86713.0,0.83196137]
[1745235047481,4.001e-05,86714.0,86713.0,0.83296137]
[1745235047678,0.30854001,86714.0,86713.0,0.83396137]
[1745235047931,0.61704001,86714.0,86713.0,0.83396137]
[1745235048146,0.0008442,86731.0,86730.0,0.57060071]
[1745235048373,0.1553442,86731.0,86730.0,0.57060071]
[1745235048664,0.1558442,86731.0,86730.0,0.57060071]
[1745235048843,0.1563442,86731.0,86730.0,0.57060071]
[1745235050483,0.1563842,86731.0,86730.0,0.57060071]
[1745235050816,0.1593842,86731.0,86730.0,0.57060071]
[1745235052393,0.2057842,86731.0,86730.0,0.57060071]
[1745235055073,0.1593842,86731.0,86730.0,0.57060071]
[1745235057491,0.1593842,86731.0,86730.0,0.70458947]
[1745235058107,0.1583842,86731.0,86730.0,0.70458947]
[1745235058343,0.1563842,86731.0,86730.0,0.70458947]
[1745235058540,0.0008842,86731.0,86730.0,0.70458947]
[1745235059036,0.1563842,86731.0,86730.0,0.70458947]
[1745235059201,1e-08,86731.0,86730.0,0.70458947]
[1745235060741,1e-08,86734.0,86733.0,0.35454085]
[1745235060878,1e-08,86734.0,86733.0,0.47398876]
[1745235061780,0.00396001,86739.0,86736.0,0.01152923]
[1745235061982,0.0008436,86740.0,86736.0,0.01152923]
[1745235061983,1e-08,86740.0,86739.0,0.58511763]
[1745235062126,1e-08,86740.0,86739.0,0.70456554]
[1745235064287,1e-08,86740.0,86739.0,0.70556554]
[1745235064501,1e-08,86740.0,86739.0,0.23257678]
[1745235065492,1e-08,86740.0,86739.0,0.23057678]
[1745235066110,1e-08,86740.0,86739.0,0.23288228]
[1745235066314,1e-08,86740.0,86739.0,0.23057678]
[1745235066727,0.00100001,86740.0,86739.0,0.23057678]
[1745235067322,1e-08,86740.0,86739.0,0.23157678]
[1745235067525,1e-08,86740.0,86739.0,0.23057678]
[1745235068373,0.00100001,86740.0,86739.0,0.23057678]
[1745235069382,0.04790001,86740.0,86739.0,0.23057678]
[1745235069806,0.04690001,86740.0,86739.0,0.23057678]
[1745235070614,0.04760001,86740.0,86737.0,0.2421112]
[1745235070828,0.0469,86738.0,86737.0,0.0115291]
[1745235071032,0.0935,86736.0,86733.0,0.01152963]
[1745235071238,0.11944791,86735.0,86733.0,0.24212115]
[1745235071572,0.0469,86734.0,86733.0,0.34]
[1745235071735,0.0935,86734.0,86733.0,0.34]
[1745235072347,0.0469,86733.0,86732.0,0.23059295]
[1745235072532,0.0469,86733.0,86732.0,0.57059295]
[1745235073804,0.0489,86733.0,86732.0,0.57059295]
[1745235074550,0.0519,86733.0,86732.0,0.57059295]
[1745235074953,4e-05,86738.0,86737.0,0.5705821]
[1745235076882,0.00204,86738.0,86737.0,0.5705821]
[1745235077491,0.00504,86738.0,86737.0,0.5705821]
[1745235078134,0.00504,86738.0,86736.0,0.34]
[1745235078327,0.00504,86738.0,86737.0,0.2305821]
[1745235079090,0.00204,86738.0,86737.0,0.2305821]
[1745235079307,4e-05,86738.0,86737.0,0.2305821]
[1745235080091,0.00204,86738.0,86737.0,0.2305821]
[1745235080296,0.00504,86738.0,86737.0,0.2305821]
[1745235080699,0.00404,86738.0,86737.0,0.2305821]
[1745235081083,0.00704,86738.0,86737.0,0.23288782]
[1745235081523,0.00704,86738.0,86737.0,0.2305821]
[1745235081840,0.00704,86738.0,86737.0,0.23288764]
[1745235082083,0.00704,86738.0,86737.0,0.2305821]
[1745235082485,0.00704,86738.0,86737.0,0.23288765]
[1745235084452,4e-05,86748.0,86739.0,0.57057678]
[1745235086602,1e-08,86740.0,86739.0,0.69102468]
[1745235087139,0.09350001,86740.0,86739.0,0.00099999]
[1745235087341,0.21294792,86740.0,86739.0,0.00099999]
[1745235088181,0.44552204,86740.0,86739.0,0.00099999]
[1745235089530,0.44352204,86740.0,86739.0,0.00099999]
[1745235089729,0.44652204,86740.0,86739.0,0.00099999]
[1745235090845,0.01152923,86736.0,86731.0,0.0115299]
[1745235091041,0.24211679,86735.0,86730.0,0.34]
[1745235091241,0.23059804,86732.0,86730.0,0.34]
[1745235091474,0.01152963,86733.0,86730.0,0.34]
[1745235091475,0.24212284,86733.0,86730.0,0.34]
[1745235091644,0.24212284,86733.0,86728.0,0.34]
[1745235091846,0.24212284,86733.0,86729.0,0.01153016]
[1745235092055,0.01152963,86733.0,86729.0,0.01153016]
[1745235092259,0.24211679,86735.0,86730.0,0.01253003]
[1745235092461,0.3615647,86735.0,86730.0,0.01253003]
[1745235092677,0.3615647,86735.0,86730.0,0.01153003]
[1745235093504,0.3615647,86735.0,86730.0,0.01253003]
[1745235093800,0.0115295,86734.0,86730.0,0.01253003]
[1745235094479,0.0115295,86734.0,86730.0,0.35253003]
[1745235095153,0.0115295,86734.0,86730.0,0.35153003]
[1745235095790,0.0125295,86734.0,86730.0,0.35153003]
[1745235097196,0.001,86734.0,86730.0,0.35153003]
[1745235097408,0.01152963,86733.0,86729.0,0.01153016]
[1745235097613,0.01152976,86732.0,86728.0,0.3515303]
[1745235097818,0.01152963,86733.0,86729.0,0.01153016]
[1745235098020,0.0493,86732.0,86729.0,0.01153016]
[1745235098172,0.0493,86732.0,86730.0,0.34]
[1745235099202,0.0493,86732.0,86729.0,0.01153016]
[1745235100333,0.0503,86732.0,86729.0,0.01153016]
[1745235101482,0.0503,86732.0,86730.0,0.34]
[1745235101635,0.0493,86732.0,86730.0,0.34]
[1745235102043,0.28089738,86732.0,86730.0,0.34]
[1745235102247,0.21444791,86731.0,86730.0,0.34]
[1745235102627,0.0493,86724.0,86721.0,0.01153123]
[1745235102827,0.23062464,86721.0,86712.0,0.24218071]
[1745235103087,0.29147723,86714.0,86712.0,0.00099999]
[1745235103259,0.16514791,86713.0,86712.0,0.00099999]
[1745235103593,0.21444791,86713.0,86712.0,0.00099999]
[1745235104134,0.32354392,86713.0,86712.0,0.00099999]
[1745235104346,0.23068316,86699.0,86698.0,0.0705752]
[1745235104558,0.44513107,86699.0,86698.0,0.07066417]
[1745235106353,0.44613107,86699.0,86698.0,0.07066417]
[1745235106705,0.44713107,86699.0,86698.0,8.897e-05]
[1745235107344,0.86333107,86699.0,86698.0,8.897e-05]
[1745235107588,0.0493,86698.0,86697.0,0.000422]
[1745235107793,0.0493,86696.0,86695.0,0.0004219]
[1745235107964,0.16874791,86696.0,86695.0,0.0004219]
[1745235108831,0.17474791,86696.0,86695.0,0.0004219]
[1745235110962,0.01153655,86681.0,86677.0,0.01153708]
[1745235111170,0.01153642,86682.0,86677.0,0.01153708]
[1745235111171,0.11944791,86680.0,86677.0,0.01153708]
[1745235111393,0.0493,86679.0,86674.0,0.11797568]
[1745235111519,0.11944791,86678.0,86676.0,0.01153721]
[1745235112716,0.27644187,86677.0,86667.0,0.25505788]
[1745235112920,0.13098512,86676.0,86671.0,0.01153788]
[1745235113259,0.11944791,86676.0,86671.0,0.01153788]
[1745235113464,0.11944791,86676.0,86673.0,0.01153761]
[1745235113642,0.01153735,86675.0,86667.0,0.01153841]
[1745235113884,0.11944791,86674.0,86671.0,0.01153788]
[1745235114717,0.11944791,86674.0,86672.0,0.01153775]
[1745235115799,0.12144791,86674.0,86672.0,0.01153775]
[1745235116951,0.12148791,86674.0,86672.0,0.01153775]
[1745235117163,0.11948791,86674.0,86673.0,0.34]
[1745235117366,0.12148791,86674.0,86673.0,0.34]
[1745235118204,0.11948791,86674.0,86673.0,0.34]
[1745235118333,0.12148791,86674.0,86673.0,0.34]
[1745235118538,0.12248791,86674.0,86673.0,0.34]
[1745235122009,0.00304,86674.0,86673.0,0.34]
[1745235123263,0.00104,86674.0,86673.0,0.34]
[1745235123704,0.00204,86674.0,86673.0,0.34]
[1745235124107,4e-05,86674.0,86673.0,0.34]
[1745235124309,0.00104,86674.0,86673.0,0.34]
[1745235124806,0.12048791,86674.0,86673.0,0.34]
[1745235126326,0.00104,86674.0,86673.0,0.34]
[1745235129605,0.00104,86674.0,86673.0,0.341]
[1745235130446,4e-05,86674.0,86673.0,0.341]
[1745235130828,0.00104,86674.0,86673.0,0.341]
[1745235133919,4e-05,86674.0,86673.0,0.341]
[1745235134540,4e-05,86674.0,86673.0,0.342]
[1745235134958,1e-08,86676.0,86675.0,0.35454085]
[1745235135200,1e-08,86676.0,86675.0,0.47398876]
[1745235135365,4e-05,86696.0,86693.0,0.01153495]
[1745235135566,4e-05,86696.0,86694.0,0.00230671]
[1745235135960,4e-05,86696.0,86695.0,0.57069381]
[1745235136525,0.11948791,86696.0,86695.0,0.23069381]
[1745235136701,0.21638791,86696.0,86695.0,0.23069381]
[1745235137129,0.21738791,86696.0,86695.0,0.23069381]
[1745235137630,0.00104,86696.0,86695.0,0.23069381]
[1745235138399,0.00204,86696.0,86695.0,0.23069381]
[1745235139086,0.00104,86696.0,86695.0,0.23069381]
[1745235139285,0.00304,86696.0,86695.0,0.23069381]
[1745235139975,0.00104,86696.0,86695.0,0.23069381]
[1745235145696,0.00104,86696.0,86695.0,0.57069381]
[1745235148647,4e-05,86696.0,86695.0,0.57069381]
[1745235149054,0.00104,86696.0,86695.0,0.57069381]
[1745235149460,4e-05,86696.0,86695.0,0.57069381]
[1745235149899,0.00104,86696.0,86695.0,0.57069381]
[1745235153503,0.05124,86696.0,86695.0,0.57069381]
[1745235157743,0.17068791,86696.0,86695.0,0.57069381]
[1745235158924,0.17068791,86696.0,86693.0,0.24223163]
[1745235159064,0.05124,86696.0,86695.0,0.23069381]
[1745235159266,0.17068791,86696.0,86695.0,0.23069381]
[1745235161627,0.05883469,86695.0,86691.0,0.01153522]
[1745235161820,0.11944791,86694.0,86692.0,0.01153508]
[1745235162323,0.11944791,86694.0,86692.0,0.24223495]
[1745235163708,0.12044791,86694.0,86692.0,0.24223495]
[1745235164287,0.12244791,86694.0,86692.0,0.24223495]
[1745235164819,0.003,86694.0,86693.0,0.23069913]
[1745235165025,0.12244791,86694.0,86693.0,0.23069913]
[1745235165980,0.12044791,86694.0,86693.0,0.23069913]
[1745235166187,0.12144791,86694.0,86693.0,0.23069913]
[1745235166310,0.12044791,86694.0,86693.0,0.23069913]
[1745235166837,0.12144791,86694.0,86693.0,0.23069913]
[1745235169360,0.12144791,86694.0,86690.0,0.24224233]
[1745235169535,0.29115522,86686.0,86680.0,0.01153668]
[1745235169743,0.16674791,86685.0,86684.0,0.23072203]
[1745235170886,0.16774791,86685.0,86682.0,0.24226348]
[1745235171088,0.16774791,86685.0,86683.0,0.23072422]
[1745235171936,0.16874791,86685.0,86683.0,0.23072422]
[1745235172536,0.16774791,86685.0,86683.0,0.23072422]
[1745235173612,0.16774791,86685.0,86682.0,0.01153642]
[1745235173808,0.01153655,86681.0,86677.0,0.23074058]
[1745235174173,0.05803681,86679.0,86674.0,0.24228527]
[1745235174331,0.11944791,86678.0,86675.0,0.24228186]
[1745235174531,0.11944791,86678.0,86676.0,0.23074231]
[1745235175983,0.12044791,86678.0,86676.0,0.23074231]